fUST/lending_fUST_20240415
["ID","MTS","AMOUNT","RATE_DAILY","PERIOD"]
[322606914,1713118240582,-701.23,0.00038356,7]
[322606916,1713118240591,-500.0,0.00038356,7]
[322606918,1713118240600,-500.0,0.00038356,7]
[322606920,1713118240608,-500.0,0.00038356,7]
[322606922,1713118240617,-500.0,0.00038356,7]
[322606924,1713118240627,-727.06,0.00038356,7]
[322606926,1713118240636,-500.0,0.00038356,7]
[322606928,1713118240645,-500.0,0.00038356,7]
[322606930,1713118240654,-725.09,0.00038356,7]
[322606932,1713118240664,-4166.49,0.00038356,7]
[322606934,1713118240673,-500.0,0.00038356,7]
[322606936,1713118240682,-500.0,0.00038356,7]
[322606938,1713118240691,-14452.07,0.00038356,7]
[322606940,1713118240700,-2461.39,0.00038356,7]
[322606942,1713118240710,-829.91232014,0.00038356,7]
[322606948,1713118240751,-682.39767986,0.00038356,7]
[322606949,1713118240762,-500.0,0.00038356,7]
[322606951,1713118240777,-952.52,0.00038356,7]
[322606953,1713118240787,-1442.14649184,0.00038356,7]
[322606956,1713118240798,-412.08755327,0.00038356,7]
[322607154,1713118243709,-0.02602043,0.00038356,7]
[322607155,1713118243721,-118.29993446,0.00038356,7]
[322607156,1713118243730,-500.0,0.00038356,7]
[322607157,1713118243739,-560.68,0.00038356,7]
[322607159,1713118243749,-500.0,0.00038356,7]
[322607160,1713118243758,-500.0,0.00038356,7]
[322607162,1713118243771,-500.0,0.00038356,7]
[322607164,1713118243781,-1119.02006554,0.00038356,7]
[322613126,1713119347200,-1192.85054803,0.00030652,4]
[322613127,1713119347221,-726.13959236,0.00030652,4]
[322613128,1713119347242,-408.68015782,0.00030653,4]
[322613129,1713119347262,-400.0,0.00030653,2]
[322613130,1713119347283,-439.04877619,0.00030654,4]
[322613131,1713119347305,-2853.49560943,0.00030654,4]
[322613132,1713119347327,-323.82288502,0.00030655,4]
[322613133,1713119347348,-548.39745054,0.00030655,4]
[322613134,1713119347371,-400.0,0.00030655,2]
[322613135,1713119347393,-757.06741755,0.00030656,4]
[322613136,1713119347418,-500.0,0.00030656,2]
[322613137,1713119347438,-10551.54318809,0.00030656,2]
[322613138,1713119347458,-154.86062544,0.00030683,4]
[322613139,1713119347479,-168.932191,0.00032523,2]
[322613140,1713119347498,-560.0,0.00033015,2]
[322613141,1713119347518,-132.54211304,0.00033204,2]
[322613142,1713119353104,-499.70925896,0.00033204,2]
[322613143,1713119353127,-1000.0,0.0003339,2]
[322613144,1713119353148,-560.0,0.00033721,2]
[322613145,1713119353988,465.26500893,0.00034,4]
[322613147,1713119384759,600.60262337,0.00031104,2]
[322613148,1713119408110,799.56329929,0.00033323,2]
[322613149,1713119409244,401.27332347,0.00034989,2]
[322613150,1713119409266,227.70484149,0.00034989,2]
[322613151,1713119432041,161.251722,0.00027397,2]
[322613211,1713119432670,-200.0,0.0003592,2]
[322613213,1713119432682,-408.68015782,0.00036076,4]
[322613215,1713119432692,-171.517998,0.00036077,2]
[322613217,1713119432703,-519.23256162,0.00036103,4]
[322613221,1713119432731,-206.90703074,0.00036103,4]
[322613223,1713119432741,-600.60262337,0.00036104,2]
[322613225,1713119432752,-327.72382144,0.00036255,2]
[322613227,1713119432762,-925.94770365,0.00036436,4]
[322613229,1713119432772,-154.86062544,0.00036436,4]
[322613231,1713119432783,-635.72202,0.0003653,120]
[322613234,1713119432794,-620.44890825,0.00036739,2]
[322613236,1713119432804,-154.82968734,0.00037587,4]
[322613238,1713119432814,-171.517998,0.00037716,2]
[322613240,1713119432825,-400.0,0.00037801,2]
[322613242,1713119432836,-400.0,0.00037801,2]
[322613244,1713119432846,-3573.41143103,0.00037802,2]
[322613380,1713119438733,-5222.4832186,0.00037802,2]
[322613381,1713119439378,-12702.40198745,0.00037802,2]
[322613382,1713119439390,-195.40608294,0.00038242,4]
[322613383,1713119439404,-2000.0,0.00038256,2]
[322613384,1713119439416,-2151.20020765,0.000383,30]
[322613385,1713119439425,-154.84515485,0.00038354,4]
[322613386,1713119439435,-339.3262926,0.00038354,4]
[322613387,1713119439444,-596.8187497,0.00038354,2]
[322613388,1713119439454,-310.29285676,0.00038354,4]
[322613389,1713119439463,-267.311714,0.00038354,4]
[322613390,1713119439472,-601.54654355,0.00038354,4]
[322613391,1713119439481,-11137.18170434,0.00038354,4]
[322613392,1713119439491,-6314.26141586,0.00038354,4]
[322613393,1713119439500,-470.55371564,0.00038354,4]
[322613394,1713119439509,-232.14868867,0.00038354,4]
[322613395,1713119439518,-514.90477905,0.00038354,4]
[322613396,1713119439527,-270.9698881,0.00038354,4]
[322613397,1713119439536,-206.06181113,0.00038354,4]
[322613398,1713119439545,-1641.24104414,0.00038354,4]
[322613399,1713119439554,-500.0,0.00038354,2]
[322613400,1713119439564,-157.86623175,0.00038354,4]
[322613401,1713119439573,-706.56655243,0.00038354,4]
[322613402,1713119439582,-267.73813162,0.00038354,4]
[322613403,1713119439591,-893.80019843,0.00038354,2]
[322613404,1713119439601,-618.73975563,0.00038354,4]
[322613405,1713119439610,-465.26500893,0.00038354,4]
[322613406,1713119439619,-242.92908465,0.00038355,4]
[322613407,1713119439628,-2497.28818778,0.00038355,4]
[322613408,1713119439637,-10914.68394032,0.00038356,5]
[322613409,1713119439648,-192.29038729,0.00038356,7]
[322613410,1713119439656,-500.0,0.00038356,7]
[322613411,1713119439665,-500.0,0.00038356,7]
[322613412,1713119439674,-500.0,0.00038356,7]
[322613413,1713119439683,-500.0,0.00038356,7]
[322613414,1713119439691,-696.77,0.00038356,7]
[322613415,1713119439700,-500.0,0.00038356,7]
[322613416,1713119439710,-500.0,0.00038356,7]
[322613417,1713119439719,-500.0,0.00038356,7]
[322613418,1713119439728,-500.0,0.00038356,7]
[322613419,1713119439737,-500.0,0.00038356,2]
[322613420,1713119439746,-389.94608623,0.00038356,7]
[322613421,1713119439755,-345.38173274,0.00038356,7]
[322613422,1713119439764,-500.0,0.00038356,7]
[322613423,1713119439773,-500.0,0.00038356,7]
[322613424,1713119439782,-500.0,0.00038356,7]
[322613425,1713119439791,-500.0,0.00038356,7]
[322613426,1713119439800,-1493.07,0.00038356,7]
[322613427,1713119439809,-1356.5,0.00038356,7]
[322613428,1713119439818,-500.0,0.00038356,7]
[322613429,1713119439827,-500.0,0.00038356,7]
[322613430,1713119439836,-500.0,0.00038356,7]
[322613431,1713119439845,-368.83977831,0.00038356,7]
[322613432,1713119439854,-500.0,0.00038356,7]
[322613433,1713119439863,-504.16661416,0.00038356,7]
[322613434,1713119439872,-500.62,0.00038356,7]
[322613435,1713119439881,-513.05,0.00038356,7]
[322613436,1713119439891,-7009.31775895,0.00038356,4]
[322613437,1713119439902,-649.92327912,0.00038356,4]
[322613438,1713119439911,-500.0,0.00038356,7]
[322613439,1713119439920,-500.0,0.00038356,7]
[322613440,1713119439929,-603.31,0.00038356,7]
[322613441,1713119439939,-500.0,0.00038356,7]
[322613442,1713119439949,-500.0,0.00038356,7]
[322613443,1713119439960,-500.0,0.00038356,7]
[322613444,1713119439971,-500.0,0.00038356,7]
[322613445,1713119439980,-500.0,0.00038356,7]
[322613446,1713119439990,-500.0,0.00038356,7]
[322613447,1713119440000,-500.0,0.00038356,7]
[322613448,1713119440009,-500.0,0.00038356,7]
[322613449,1713119440018,-500.0,0.00038356,7]
[322613450,1713119440027,-532.34576544,0.00038356,7]
[322613451,1713119440036,-500.0,0.00038356,7]
[322613452,1713119440046,-500.0,0.00038356,7]
[322613453,1713119440055,-500.0,0.00038356,7]
[322613454,1713119440065,-500.0,0.00038356,7]
[322613455,1713119440074,-500.0,0.00038356,7]
[322613456,1713119440083,-500.0,0.00038356,7]
[322613457,1713119440093,-500.0,0.00038356,7]
[322613458,1713119440102,-2287.53,0.00038356,7]
[322613460,1713119440111,-500.0,0.00038356,7]
[322613462,1713119440120,-9886.56810435,0.00038356,7]
[322613891,1713119446678,-156.88081528,0.00038355,4]
[322613892,1713119446687,-11817.57189565,0.00038356,7]
[322613893,1713119446696,-500.0,0.00038356,7]
[322613894,1713119446706,-500.0,0.00038356,7]
[322613895,1713119446715,-500.0,0.00038356,7]
[322613896,1713119446725,-500.0,0.00038356,7]
[322613897,1713119446735,-500.0,0.00038356,7]
[322613898,1713119446744,-500.0,0.00038356,7]
[322613899,1713119446753,-500.0,0.00038356,7]
[322613900,1713119446763,-500.0,0.00038356,7]
[322613901,1713119446772,-500.0,0.00038356,7]
[322613902,1713119446782,-636.13,0.00038356,7]
[322613903,1713119446791,-500.0,0.00038356,7]
[322613904,1713119446800,-500.0,0.00038356,7]
[322613905,1713119446809,-1688.23,0.00038356,7]
[322613906,1713119446818,-500.0,0.00038356,7]
[322613907,1713119446828,-500.0,0.00038356,7]
[322613909,1713119446836,-500.0,0.00038356,7]
[322613911,1713119446846,-500.0,0.00038356,7]
[322613913,1713119446855,-1561.74,0.00038356,7]
[322613915,1713119446864,-466.20606357,0.00038356,7]
[322613916,1713119446873,-612.84,0.00038356,7]
[322613917,1713119446882,-500.0,0.00038356,7]
[322613918,1713119446891,-500.0,0.00038356,7]
[322613920,1713119446904,-3801.6,0.00038356,7]
[322613922,1713119446913,-500.0,0.00038356,7]
[322613924,1713119446922,-500.0,0.00038356,7]
[322613926,1713119446932,-792.8,0.00038356,7]
[322613928,1713119446940,-500.0,0.00038356,7]
[322613930,1713119446950,-500.0,0.00038356,7]
[322613932,1713119446959,-286.72815159,0.00038356,7]
[322613933,1713119446968,-500.0,0.00038356,7]
[322613934,1713119446977,-500.0,0.00038356,7]
[322613935,1713119446986,-295.23616803,0.00038356,7]
[322613936,1713119446996,-543.39,0.00038356,7]
[322613937,1713119447005,-500.0,0.00038356,7]
[322613939,1713119447016,-500.0,0.00038356,7]
[322613941,1713119447026,-500.0,0.00038356,7]
[322613943,1713119447036,-500.0,0.00038356,7]
[322613944,1713119447046,-500.0,0.00038356,7]
[322613945,1713119447056,-500.0,0.00038356,7]
[322613946,1713119447065,-500.0,0.00038356,7]
[322613947,1713119447074,-500.0,0.00038356,7]
[322613948,1713119447084,-500.0,0.00038356,7]
[322613949,1713119447094,-500.0,0.00038356,7]
[322613950,1713119447104,-500.0,0.00038356,7]
[322613951,1713119447113,-500.0,0.00038356,7]
[322613952,1713119447122,-812.77,0.00038356,7]
[322613953,1713119447131,-500.0,0.00038356,7]
[322613954,1713119447141,-233.30131558,0.00038356,7]
[322613955,1713119447157,-500.0,0.00038356,7]
[322613956,1713119447166,-500.0,0.00038356,7]
[322613957,1713119447175,-500.0,0.00038356,7]
[322613958,1713119447186,-1486.53,0.00038356,7]
[322613959,1713119447195,-500.0,0.00038356,7]
[322613960,1713119447204,-500.0,0.00038356,7]
[322613961,1713119447212,-16466.79,0.00038356,7]
[322613962,1713119447222,-500.0,0.00038356,7]
[322613963,1713119447232,-567.9,0.00038356,7]
[322613964,1713119447241,-2496.68,0.00038356,7]
[322613965,1713119447250,-500.0,0.00038356,7]
[322613966,1713119447259,-500.0,0.00038356,7]
[322613967,1713119447268,-500.0,0.00038356,7]
[322613968,1713119447278,-510.1778443,0.00038356,7]
[322613969,1713119447287,-500.0,0.00038356,7]
[322613970,1713119447296,-966.58,0.00038356,7]
[322613971,1713119447305,-500.0,0.00038356,7]
[322613972,1713119447314,-500.0,0.00038356,7]
[322613973,1713119447323,-500.0,0.00038356,7]
[322613974,1713119447332,-500.0,0.00038356,7]
[322613976,1713119447341,-500.0,0.00038356,7]
[322613977,1713119447350,-42728.62,0.00038356,7]
[322613979,1713119447360,-500.0,0.00038356,7]
[322613980,1713119447369,-500.0,0.00038356,7]
[322613981,1713119447378,-500.0,0.00038356,7]
[322613984,1713119447519,-500.0,0.00038356,7]
[322613985,1713119447530,-500.0,0.00038356,7]
[322613986,1713119447540,-6408.9,0.00038356,7]
[322613987,1713119447549,-160.20288293,0.00038356,4]
[322613988,1713119447559,-500.0,0.00038356,7]
[322613989,1713119447568,-500.0,0.00038356,7]
[322613990,1713119447577,-500.0,0.00038356,7]
[322613991,1713119447588,-836.1,0.00038356,7]
[322613992,1713119447597,-2137.47,0.00038356,7]
[322613993,1713119447607,-500.0,0.00038356,7]
[322613994,1713119447616,-500.0,0.00038356,7]
[322613995,1713119447625,-500.0,0.00038356,7]
[322613996,1713119447634,-2074.62,0.00038356,7]
[322613997,1713119447643,-4743.11,0.00038356,7]
[322613998,1713119447656,-2874.09,0.00038356,7]
[322613999,1713119447667,-2739.67,0.00038356,7]
[322614000,1713119447677,-969.51,0.00038356,7]
[322614001,1713119447687,-500.0,0.00038356,7]
[322614002,1713119447698,-500.0,0.00038356,7]
[322614003,1713119447709,-500.0,0.00038356,7]
[322614004,1713119447719,-500.0,0.00038356,7]
[322614005,1713119447730,-500.0,0.00038356,7]
[322614006,1713119447741,-583.13070165,0.00038356,7]
[322614007,1713119447752,-500.0,0.00038356,7]
[322614008,1713119447763,-666.35,0.00038356,7]
[322614009,1713119447773,-501.39568395,0.00038356,7]
[322614010,1713119447784,-619.46392019,0.00038356,7]
[322614011,1713119447794,-500.0,0.00038356,7]
[322614012,1713119447804,-561.4268139,0.00038356,7]
[322614013,1713119447814,-715.88,0.00038356,7]
[322614014,1713119447823,-500.0,0.00038356,7]
[322614015,1713119447833,-500.0,0.00038356,7]
[322614016,1713119447842,-500.0,0.00038356,7]
[322614017,1713119447852,-500.0,0.00038356,7]
[322614018,1713119447861,-500.0,0.00038356,7]
[322614019,1713119447871,-500.0,0.00038356,7]
[322614020,1713119447880,-500.0,0.00038356,7]
[322614021,1713119447890,-12231.83,0.00038356,7]
[322614022,1713119447901,-500.0,0.00038356,7]
[322614023,1713119447910,-500.0,0.00038356,7]
[322614024,1713119447919,-500.0,0.00038356,7]
[322614025,1713119447929,-500.0,0.00038356,7]
[322614026,1713119447938,-595.18,0.00038356,7]
[322614027,1713119447947,-1021.99,0.00038356,7]
[322614028,1713119447956,-500.0,0.00038356,7]
[322614029,1713119447966,-505.10520133,0.00038356,7]
[322614030,1713119447975,-500.0,0.00038356,7]
[322614031,1713119447984,-916.97,0.00038356,7]
[322614032,1713119447993,-535.85,0.00038356,7]
[322614033,1713119448003,-500.0,0.00038356,7]
[322614034,1713119448012,-500.0,0.00038356,7]
[322614035,1713119448021,-3333.32,0.00038356,7]
[322614036,1713119448030,-662.98,0.00038356,7]
[322614037,1713119448039,-500.0,0.00038356,7]
[322614038,1713119448049,-1850.19,0.00038356,7]
[322614039,1713119448059,-1725.57,0.00038356,7]
[322614040,1713119448068,-500.0,0.00038356,7]
[322614041,1713119448077,-500.0,0.00038356,7]
[322614042,1713119448087,-500.0,0.00038356,7]
[322614043,1713119448096,-500.0,0.00038356,7]
[322614044,1713119448106,-571.78,0.00038356,7]
[322614045,1713119448115,-500.0,0.00038356,7]
[322614046,1713119448125,-500.0,0.00038356,7]
[322614047,1713119448135,-500.53446543,0.00038356,7]
[322614048,1713119448144,-4507.13,0.00038356,7]
[322614049,1713119448158,-500.0,0.00038356,7]
[322614050,1713119448171,-501.69,0.00038356,7]
[322614051,1713119448181,-500.0,0.00038356,7]
[322614052,1713119448192,-673.9,0.00038356,7]
[322614053,1713119448203,-500.0,0.00038356,7]
[322614054,1713119448215,-500.0,0.00038356,7]
[322614055,1713119448225,-362.40080166,0.00038356,7]
[322614056,1713119448237,-500.0,0.00038356,7]
[322614057,1713119448247,-500.0,0.00038356,7]
[322614058,1713119448257,-647.74,0.00038356,10]
[322614059,1713119448268,-647.74,0.00038356,10]
[322614060,1713119448278,-280.50598474,0.00038356,7]
[322614061,1713119448288,-647.74,0.00038356,10]
[322614062,1713119448298,-647.74,0.00038356,10]
[322614063,1713119448309,-647.74,0.00038356,10]
[322614064,1713119448319,-494.45892897,0.00038356,7]
[322614065,1713119448330,-500.0,0.00038356,7]
[322614066,1713119448339,-500.0,0.00038356,7]
[322614067,1713119448348,-500.0,0.00038356,7]
[322614068,1713119448357,-710.24,0.00038356,7]
[322614069,1713119448368,-500.0,0.00038356,7]
[322614070,1713119448377,-500.0,0.00038356,7]
[322614071,1713119448387,-500.0,0.00038356,7]
[322614072,1713119448396,-500.0,0.00038356,7]
[322614073,1713119448415,-500.0,0.00038356,7]
[322614074,1713119448424,-500.0,0.00038356,7]
[322614075,1713119448433,-500.0,0.00038356,7]
[322614076,1713119448443,-500.0,0.00038356,7]
[322614077,1713119448452,-500.0,0.00038356,7]
[322614078,1713119448461,-500.0,0.00038356,7]
[322614079,1713119448471,-261.0317358,0.00038356,7]
[322614080,1713119448480,-500.0,0.00038356,7]
[322614081,1713119448490,-500.0,0.00038356,7]
[322614082,1713119448499,-500.0,0.00038356,7]
[322614083,1713119448508,-500.0,0.00038356,7]
[322614084,1713119448517,-500.0,0.00038356,7]
[322614085,1713119448526,-500.0,0.00038356,7]
[322614086,1713119448535,-957.58,0.00038356,7]
[322614087,1713119448545,-500.0,0.00038356,7]
[322614088,1713119448554,-500.0,0.00038356,7]
[322614089,1713119448565,-500.0,0.00038356,7]
[322614090,1713119448575,-500.0,0.00038356,7]
[322614091,1713119448584,-500.0,0.00038356,7]
[322614092,1713119448594,-500.0,0.00038356,7]
[322614093,1713119448603,-500.0,0.00038356,7]
[322614094,1713119448613,-500.0,0.00038356,7]
[322614095,1713119448622,-500.0,0.00038356,7]
[322614096,1713119448632,-500.0,0.00038356,7]
[322614097,1713119448641,-3057.94,0.00038356,7]
[322614098,1713119448655,-500.0,0.00038356,7]
[322614099,1713119448664,-2264.27,0.00038356,7]
[322614100,1713119448674,-500.0,0.00038356,7]
[322614101,1713119448683,-500.0,0.00038356,7]
[322614102,1713119448692,-1323.88,0.00038356,7]
[322614103,1713119448702,-500.0,0.00038356,7]
[322614104,1713119448711,-501.10111891,0.00038356,7]
[322614105,1713119448721,-500.0,0.00038356,7]
[322614106,1713119448730,-500.0,0.00038356,7]
[322614107,1713119448740,-8068.42,0.00038356,7]
[322614108,1713119448749,-500.0,0.00038356,7]
[322614109,1713119448758,-500.0,0.00038356,7]
[322614110,1713119448767,-500.0,0.00038356,7]
[322614111,1713119448776,-500.0,0.00038356,7]
[322614112,1713119448786,-500.0,0.00038356,7]
[322614113,1713119448795,-500.0,0.00038356,7]
[322614114,1713119448804,-500.0,0.00038356,7]
[322614115,1713119448813,-500.0,0.00038356,7]
[322614116,1713119448823,-583.21,0.00038356,7]
[322614117,1713119448832,-500.0,0.00038356,7]
[322614118,1713119448841,-500.0,0.00038356,7]
[322614119,1713119448850,-2443.48,0.00038356,7]
[322614120,1713119448860,-3992.89,0.00038356,7]
[322614121,1713119448869,-620.02244541,0.00038576,2]
[322614122,1713119448878,-473.31258162,0.00038628,4]
[322614123,1713119448887,-277.10572932,0.00038628,4]
[322614124,1713119448896,-181.18098361,0.00038629,4]
[322614125,1713119448910,-500.0,0.00038629,7]
[322614126,1713119448920,-500.0,0.00038629,7]
[322614127,1713119448930,-500.0,0.00038629,7]
[322614128,1713119448939,-266.12683521,0.00038629,7]
[322614129,1713119448948,-647.74,0.00038629,10]
[322614130,1713119448958,-647.74,0.00038629,10]
[322614131,1713119448968,-647.74,0.00038629,10]
[322614132,1713119448977,-647.74,0.00038629,10]
[322614133,1713119448987,-647.74,0.00038629,10]
[322614134,1713119448996,-500.0,0.00038629,7]
[322614135,1713119449006,-500.0,0.00038629,7]
[322614136,1713119449015,-500.0,0.00038629,7]
[322614137,1713119449026,-500.0,0.00038629,7]
[322614138,1713119449035,-500.0,0.00038629,7]
[322614139,1713119449045,-500.0,0.00038629,7]
[322614140,1713119449054,-500.0,0.00038629,7]
[322614141,1713119449064,-500.0,0.00038629,7]
[322614142,1713119449073,-500.0,0.00038629,7]
[322614143,1713119449082,-500.0,0.00038629,7]
[322614144,1713119449091,-500.0,0.00038629,7]
[322614145,1713119449099,-225.39663084,0.00038629,7]
[322614146,1713119449108,-500.0,0.0003863,7]
[322614147,1713119449117,-500.0,0.0003863,7]
[322614148,1713119449126,-163.87393137,0.0003863,7]
[322614149,1713119449136,-500.0,0.0003863,7]
[322614150,1713119449145,-696.77,0.0003863,7]
[322614151,1713119449158,-500.0,0.0003863,7]
[322614152,1713119449169,-500.0,0.0003863,7]
[322614153,1713119449179,-587.07678689,0.0003863,7]
[322614154,1713119449189,-500.0,0.0003863,2]
[322614155,1713119449198,-500.0,0.0003863,7]
[322614156,1713119449208,-500.0,0.0003863,7]
[322614157,1713119449217,-500.0,0.0003863,7]
[322614158,1713119449226,-1493.07,0.0003863,7]
[322614159,1713119449235,-1356.5,0.0003863,7]
[322614160,1713119449245,-500.0,0.0003863,7]
[322614161,1713119449253,-306.63212663,0.0003863,7]
[322614162,1713119449263,-500.0,0.0003863,7]
[322614163,1713119449272,-500.0,0.0003863,7]
[322614164,1713119449281,-500.62,0.0003863,7]
[322614165,1713119449290,-513.05,0.0003863,7]
[322614166,1713119449299,-500.0,0.0003863,7]
[322614167,1713119449308,-177.36626735,0.0003863,7]
[322614168,1713119449318,-603.31,0.0003863,7]
[322614169,1713119449327,-500.0,0.0003863,7]
[322614170,1713119449338,-500.0,0.0003863,7]
[322614171,1713119449347,-500.0,0.0003863,7]
[322614172,1713119449356,-500.0,0.0003863,7]
[322614173,1713119449365,-500.0,0.0003863,7]
[322614174,1713119449374,-440.1589373,0.0003863,7]
[322614175,1713119449383,-500.0,0.0003863,7]
[322614176,1713119449393,-500.0,0.0003863,7]
[322614177,1713119449406,-500.0,0.0003863,7]
[322614178,1713119449415,-500.0,0.0003863,7]
[322614179,1713119449424,-364.98674681,0.0003863,7]
[322614180,1713119449433,-500.0,0.0003863,7]
[322614181,1713119449442,-500.0,0.0003863,7]
[322614182,1713119449451,-500.0,0.0003863,7]
[322614183,1713119449460,-21704.14,0.0003863,7]
[322614184,1713119449469,-500.0,0.0003863,7]
[322614185,1713119449478,-500.0,0.0003863,7]
[322614186,1713119449488,-500.0,0.0003863,7]
[322614187,1713119449497,-600.35787769,0.0003863,7]
[322614188,1713119449506,-500.0,0.0003863,7]
[322614189,1713119449515,-500.0,0.0003863,7]
[322614190,1713119449525,-500.0,0.0003863,7]
[322614191,1713119449534,-636.13,0.0003863,7]
[322614192,1713119449543,-500.0,0.0003863,7]
[322614193,1713119449552,-500.0,0.0003863,7]
[322614194,1713119449561,-1688.23,0.0003863,7]
[322614195,1713119449570,-500.0,0.0003863,7]
[322614196,1713119449579,-500.0,0.0003863,7]
[322614197,1713119449588,-500.0,0.0003863,7]
[322614198,1713119449597,-1561.74,0.0003863,7]
[322614200,1713119449607,-612.84,0.0003863,7]
[322614202,1713119449616,-3801.6,0.0003863,7]
[322614204,1713119449625,-500.0,0.0003863,7]
[322614205,1713119449634,-500.0,0.0003863,7]
[322614207,1713119449643,-792.8,0.0003863,7]
[322614208,1713119449654,-500.0,0.0003863,7]
[322614209,1713119449663,-500.0,0.0003863,7]
[322614210,1713119449672,-500.0,0.0003863,7]
[322614212,1713119449681,-543.39,0.0003863,7]
[322614214,1713119449690,-500.0,0.0003863,7]
[322614216,1713119449699,-569.3186,0.0003863,7]
[322614218,1713119449708,-500.0,0.0003863,7]
[322614220,1713119449716,-508.55691869,0.0003863,7]
[322614221,1713119449725,-500.0,0.0003863,7]
[322614222,1713119449734,-500.0,0.0003863,7]
[322614223,1713119449743,-503.9805611,0.0003863,7]
[322614224,1713119449752,-500.0,0.0003863,7]
[322614225,1713119449760,-500.0,0.0003863,7]
[322614226,1713119449770,-500.0,0.0003863,7]
[322614227,1713119449779,-812.77,0.0003863,7]
[322614228,1713119449788,-500.0,0.0003863,7]
[322614229,1713119449797,-500.0,0.0003863,7]
[322614230,1713119449806,-1486.53,0.0003863,7]
[322614231,1713119449815,-500.0,0.0003863,7]
[322614232,1713119449825,-16466.79,0.0003863,7]
[322614233,1713119449834,-500.0,0.0003863,7]
[322614234,1713119449844,-567.9,0.0003863,7]
[322614235,1713119449853,-2496.68,0.0003863,7]
[322614236,1713119449862,-511.37975332,0.0003863,7]
[322614237,1713119449872,-500.0,0.0003863,7]
[322614238,1713119449881,-500.0,0.0003863,7]
[322614239,1713119449892,-966.58,0.0003863,7]
[322614240,1713119449906,-500.0,0.0003863,7]
[322614241,1713119449915,-500.0,0.0003863,7]
[322614242,1713119449925,-500.0,0.0003863,7]
[322614243,1713119449934,-500.0,0.0003863,7]
[322614244,1713119449944,-42728.62,0.0003863,7]
[322614245,1713119449953,-500.0,0.0003863,7]
[322614246,1713119449962,-500.0,0.0003863,7]
[322614247,1713119449971,-500.0,0.0003863,7]
[322614248,1713119449980,-500.0,0.0003863,7]
[322614249,1713119449989,-6408.9,0.0003863,7]
[322614250,1713119449998,-500.0,0.0003863,7]
[322614251,1713119450007,-500.0,0.0003863,7]
[322614252,1713119450016,-836.1,0.0003863,7]
[322614253,1713119450026,-2137.47,0.0003863,7]
[322614254,1713119450036,-500.0,0.0003863,7]
[322614255,1713119450046,-2074.62,0.0003863,7]
[322614256,1713119450056,-4743.11,0.0003863,7]
[322614257,1713119450066,-2874.09,0.0003863,7]
[322614258,1713119450075,-2739.67,0.0003863,7]
[322614259,1713119450084,-969.51,0.0003863,7]
[322614260,1713119450093,-500.0,0.0003863,7]
[322614261,1713119450103,-500.0,0.0003863,7]
[322614262,1713119450113,-666.35,0.0003863,7]
[322614263,1713119450122,-500.0,0.0003863,7]
[322614264,1713119450132,-715.88,0.0003863,7]
[322614265,1713119450145,-500.0,0.0003863,7]
[322614266,1713119450158,-500.0,0.0003863,7]
[322614267,1713119450168,-12231.83,0.0003863,7]